[Event "Early-Titled-Tuesday-Blitz-September-05-2023"]
[Site "Chess.com"]
[Date "2023.09.05"]
[Round "11"]
[White "Msb2"]
[Black "shimastream"]
[Result "0-1"]
[WhiteElo "3090"]
[BlackElo "2981"]
[TimeControl "180+1"]
[EndTime "10:05:51 PDT"]
[Termination "shimastream won by checkmate"]

1. d4 {[%clk 0:03:00.9]} 1... d6 {[%clk 0:02:50.5]} 2. Nf3 {[%clk 0:03:01.1]}
2... g6 {[%clk 0:02:49]} 3. c4 {[%clk 0:03:01.6]} 3... Bg7 {[%clk 0:02:49.5]} 4.
Nc3 {[%clk 0:03:02.3]} 4... Nf6 {[%clk 0:02:46.4]} 5. e4 {[%clk 0:03:02.7]} 5...
O-O {[%clk 0:02:46.3]} 6. Be2 {[%clk 0:03:03.4]} 6... e5 {[%clk 0:02:45.1]} 7.
Be3 {[%clk 0:03:04.1]} 7... Nbd7 {[%clk 0:02:42.6]} 8. O-O {[%clk 0:03:04.1]}
8... Qe7 {[%clk 0:02:38.3]} 9. Qc2 {[%clk 0:03:04.4]} 9... a6 {[%clk 0:02:34]}
10. Rad1 {[%clk 0:03:00.9]} 10... exd4 {[%clk 0:02:29.1]} 11. Nxd4 {[%clk
0:03:01.8]} 11... Re8 {[%clk 0:02:27.8]} 12. f3 {[%clk 0:02:59.6]} 12... c5
{[%clk 0:02:27.8]} 13. Nb3 {[%clk 0:02:59.5]} 13... Ne5 {[%clk 0:02:28]} 14. Qd2
{[%clk 0:02:24]} 14... Be6 {[%clk 0:02:23.6]} 15. Qxd6 {[%clk 0:02:05.1]} 15...
Qxd6 {[%clk 0:02:17.4]} 16. Rxd6 {[%clk 0:02:06]} 16... Bxc4 {[%clk 0:01:52.9]}
17. Bxc5 {[%clk 0:01:26.3]} 17... Bxb3 {[%clk 0:01:45]} 18. axb3 {[%clk
0:01:23.9]} 18... Bf8 {[%clk 0:01:45.2]} 19. Rxf6 {[%clk 0:00:54.6]} 19... Bxc5+
{[%clk 0:01:44.4]} 20. Kh1 {[%clk 0:00:55.3]} 20... Kg7 {[%clk 0:01:44.1]} 21.
Nd5 {[%clk 0:00:52.7]} 21... Rad8 {[%clk 0:01:44.1]} 22. Rf4 {[%clk 0:00:49.1]}
22... Nc6 {[%clk 0:01:16.9]} 23. Rh4 {[%clk 0:00:43.7]} 23... Bd4 {[%clk
0:00:51.4]} 24. Bd3 {[%clk 0:00:35.4]} 24... Bxb2 {[%clk 0:00:50.3]} 25. f4
{[%clk 0:00:35.4]} 25... Ne7 {[%clk 0:00:48]} 26. Bc4 {[%clk 0:00:34.7]} 26...
b5 {[%clk 0:00:45.6]} 27. Nxe7 {[%clk 0:00:35.1]} 27... bxc4 {[%clk 0:00:44.3]}
28. Nc6 {[%clk 0:00:22.7]} 28... c3 {[%clk 0:00:41.9]} 29. Nxd8 {[%clk
0:00:08.2]} 29... Rxd8 {[%clk 0:00:42.8]} 30. f5 {[%clk 0:00:05.1]} 30... c2
{[%clk 0:00:42.9]} 31. f6+ {[%clk 0:00:06]} 31... Bxf6 {[%clk 0:00:35.1]} 32.
Rhf4 {[%clk 0:00:06.3]} 32... Rd1 {[%clk 0:00:32.6]} 33. Rxf6 {[%clk 0:00:06.8]}
33... c1=Q {[%clk 0:00:32.5]} 34. Rxf7+ {[%clk 0:00:07.7]} 34... Kh6 {[%clk
0:00:32.8]} 35. Kg1 {[%clk 0:00:08.6]} 35... Qe3+ {[%clk 0:00:30.4]} 36. Kh1
{[%clk 0:00:09.2]} 36... Rxf1+ {[%clk 0:00:30.6]} 37. Rxf1 {[%clk 0:00:10.1]}
37... Qxb3 {[%clk 0:00:30.9]} 38. h3 {[%clk 0:00:09.2]} 38... a5 {[%clk
0:00:30.1]} 39. Rf4 {[%clk 0:00:09.4]} 39... a4 {[%clk 0:00:29.9]} 40. e5 {[%clk
0:00:10.1]} 40... a3 {[%clk 0:00:29.8]} 41. e6 {[%clk 0:00:10.6]} 41... Qxe6
{[%clk 0:00:29.5]} 42. Rh4+ {[%clk 0:00:11.2]} 42... Kg7 {[%clk 0:00:29.4]} 43.
Ra4 {[%clk 0:00:12.1]} 43... Qe1+ {[%clk 0:00:26.2]} 44. Kh2 {[%clk 0:00:12]}
44... Qe5+ {[%clk 0:00:27]} 45. Kh1 {[%clk 0:00:12.9]} 45... Qb2 {[%clk
0:00:27.7]} 46. Ra7+ {[%clk 0:00:12.8]} 46... Kh6 {[%clk 0:00:28]} 47. Ra4
{[%clk 0:00:13.7]} 47... a2 {[%clk 0:00:27.7]} 48. Rh4+ {[%clk 0:00:14.6]} 48...
Kg7 {[%clk 0:00:27.7]} 49. Rxh7+ {[%clk 0:00:15.5]} 49... Kxh7 {[%clk 0:00:28]}
50. Kh2 {[%clk 0:00:16.4]} 50... Qe5+ {[%clk 0:00:27.5]} 51. Kg1 {[%clk
0:00:16.7]} 51... a1=Q+ {[%clk 0:00:27.2]} 52. Kf2 {[%clk 0:00:17.6]} 52...
Qad4+ {[%clk 0:00:27.3]} 53. Kf1 {[%clk 0:00:18.3]} 53... Qef4+ {[%clk
0:00:19.9]} 54. Ke2 {[%clk 0:00:19.2]} 54... Qff2# {[%clk 0:00:20.5]} 0-1

[Event "Early-Titled-Tuesday-Blitz-September-05-2023"]
[Site "Chess.com"]
[Date "2023.09.05"]
[Round "11"]
[White "HouseOfDurin"]
[Black "Gyulamiryan-koryun"]
[Result "1-0"]
[WhiteElo "2261"]
[BlackElo "2055"]
[TimeControl "180+1"]
[EndTime "10:05:52 PDT"]
[Termination "HouseOfDurin won on time"]

1. d4 {[%clk 0:03:00.9]} 1... Nf6 {[%clk 0:02:59.8]} 2. Bg5 {[%clk 0:03:01.4]}
2... d5 {[%clk 0:02:59.1]} 3. Bxf6 {[%clk 0:03:01.4]} 3... exf6 {[%clk
0:02:58.5]} 4. c4 {[%clk 0:03:02.1]} 4... Bb4+ {[%clk 0:02:47.7]} 5. Nc3 {[%clk
0:03:01.5]} 5... c6 {[%clk 0:02:45.6]} 6. cxd5 {[%clk 0:03:01.1]} 6... Qxd5
{[%clk 0:02:42.4]} 7. e3 {[%clk 0:03:01.2]} 7... O-O {[%clk 0:02:40.4]} 8. Ne2
{[%clk 0:02:59.2]} 8... Qa5 {[%clk 0:02:19.7]} 9. a3 {[%clk 0:02:57]} 9... Bd6
{[%clk 0:02:17.3]} 10. b4 {[%clk 0:02:55.6]} 10... Qc7 {[%clk 0:02:13.2]} 11. g3
{[%clk 0:02:55]} 11... Bg4 {[%clk 0:02:09.7]} 12. Bg2 {[%clk 0:02:54.8]} 12...
Nd7 {[%clk 0:02:08.6]} 13. Rc1 {[%clk 0:02:52.4]} 13... Nb6 {[%clk 0:01:58.5]}
14. O-O {[%clk 0:02:51.3]} 14... Rad8 {[%clk 0:01:55.6]} 15. Nb5 {[%clk
0:02:31]} 15... Qd7 {[%clk 0:01:41.3]} 16. Nxd6 {[%clk 0:02:26.9]} 16... Qxd6
{[%clk 0:01:40]} 17. Qc2 {[%clk 0:02:26.7]} 17... Qd7 {[%clk 0:01:29.1]} 18.
Rfd1 {[%clk 0:02:22.1]} 18... Nd5 {[%clk 0:01:23.4]} 19. Rd2 {[%clk 0:02:13.2]}
19... Rfe8 {[%clk 0:01:22.3]} 20. Nc3 {[%clk 0:02:11.4]} 20... Nb6 {[%clk
0:01:13.3]} 21. Na4 {[%clk 0:01:54.1]} 21... h5 {[%clk 0:01:05]} 22. Nc5 {[%clk
0:01:50.3]} 22... Qc8 {[%clk 0:01:02.8]} 23. e4 {[%clk 0:01:28.9]} 23... h4
{[%clk 0:00:53.7]} 24. f3 {[%clk 0:01:28.9]} 24... h3 {[%clk 0:00:34.6]} 25. Bh1
{[%clk 0:01:21]} 25... Bh5 {[%clk 0:00:29.7]} 26. Rcd1 {[%clk 0:01:07.9]} 26...
Bg6 {[%clk 0:00:17.4]} 27. f4 {[%clk 0:01:01.1]} 27... Nd5 {[%clk 0:00:16.2]}
28. Qb3 {[%clk 0:00:56.4]} 28... Nc7 {[%clk 0:00:09.6]} 29. Re1 {[%clk
0:00:44.7]} 29... b6 {[%clk 0:00:07.7]} 30. Na4 {[%clk 0:00:41.5]} 30... f5
{[%clk 0:00:07.6]} 31. e5 {[%clk 0:00:41]} 31... Ne6 {[%clk 0:00:07.2]} 32. Qc3
{[%clk 0:00:39]} 32... c5 {[%clk 0:00:06.8]} 33. bxc5 {[%clk 0:00:34.7]} 33...
bxc5 {[%clk 0:00:06.3]} 34. d5 {[%clk 0:00:35.1]} 34... Nd4 {[%clk 0:00:06.3]}
35. Qxc5 {[%clk 0:00:29]} 35... Nb3 {[%clk 0:00:04.4]} 36. Qxc8 {[%clk
0:00:27.5]} 36... Rxc8 {[%clk 0:00:05.3]} 37. Rd3 {[%clk 0:00:26]} 37... Nc5
{[%clk 0:00:05]} 38. Nxc5 {[%clk 0:00:24.8]} 38... Rxc5 {[%clk 0:00:05.9]} 39.
d6 {[%clk 0:00:23.6]} 39... Rd8 {[%clk 0:00:05.9]} 40. Red1 {[%clk 0:00:23.6]}
40... f6 {[%clk 0:00:05.4]} 41. e6 {[%clk 0:00:22.5]} 41... Ra5 {[%clk
0:00:03.9]} 42. Bc6 {[%clk 0:00:21.1]} 42... Be8 {[%clk 0:00:03.5]} 43. d7
{[%clk 0:00:18.9]} 43... Bxd7 {[%clk 0:00:01.7]} 44. Bxd7 {[%clk 0:00:19]} 1-0

[Event "Early-Titled-Tuesday-Blitz-September-05-2023"]
[Site "Chess.com"]
[Date "2023.09.05"]
[Round "11"]
[White "Boorchess"]
[Black "Kapitan_Bayan"]
[Result "1/2-1/2"]
[WhiteElo "2561"]
[BlackElo "2194"]
[TimeControl "180+1"]
[EndTime "10:05:53 PDT"]
[Termination "Game drawn - insufficient material"]

1. d4 {[%clk 0:03:00.9]} 1... d5 {[%clk 0:02:59.5]} 2. c4 {[%clk 0:03:01]} 2...
dxc4 {[%clk 0:03:00.4]} 3. e3 {[%clk 0:03:00.9]} 3... e6 {[%clk 0:03:00.8]} 4.
Bxc4 {[%clk 0:03:00.9]} 4... c5 {[%clk 0:03:01.4]} 5. Nf3 {[%clk 0:03:00.9]}
5... Nf6 {[%clk 0:03:00.5]} 6. O-O {[%clk 0:03:00.9]} 6... a6 {[%clk 0:03:00.8]}
7. dxc5 {[%clk 0:03:00.8]} 7... Bxc5 {[%clk 0:02:59.5]} 8. Qxd8+ {[%clk
0:02:59.9]} 8... Kxd8 {[%clk 0:03:00.4]} 9. Be2 {[%clk 0:02:59.7]} 9... Ke7
{[%clk 0:03:00.2]} 10. Nbd2 {[%clk 0:02:59.5]} 10... Bd7 {[%clk 0:02:51.8]} 11.
Ne5 {[%clk 0:02:57.4]} 11... Nc6 {[%clk 0:02:50.2]} 12. Nxd7 {[%clk 0:02:54.4]}
12... Nxd7 {[%clk 0:02:48.5]} 13. Ne4 {[%clk 0:02:49.8]} 13... e5 {[%clk
0:02:42]} 14. Nxc5 {[%clk 0:02:43.5]} 14... Nxc5 {[%clk 0:02:42.9]} 15. b3
{[%clk 0:02:40.5]} 15... Nb4 {[%clk 0:02:37.6]} 16. Ba3 {[%clk 0:02:32.7]} 16...
a5 {[%clk 0:02:35.2]} 17. Rfc1 {[%clk 0:02:28.6]} 17... b6 {[%clk 0:02:31.8]}
18. Rc4 {[%clk 0:02:21.8]} 18... Rhd8 {[%clk 0:02:29.9]} 19. Bf3 {[%clk
0:02:15.5]} 19... Ra7 {[%clk 0:01:59.1]} 20. Bxb4 {[%clk 0:01:36.7]} 20... axb4
{[%clk 0:01:58.3]} 21. Rxb4 {[%clk 0:01:36.6]} 21... e4 {[%clk 0:01:56.7]} 22.
Bxe4 {[%clk 0:01:26.3]} 22... Rxa2 {[%clk 0:01:54.6]} 23. Rf1 {[%clk 0:01:23.3]}
23... Rdd2 {[%clk 0:01:46.9]} 24. Bb1 {[%clk 0:01:12.7]} 24... Rab2 {[%clk
0:01:32.6]} 25. Rxb6 {[%clk 0:01:08.5]} 25... Nxb3 {[%clk 0:01:26.7]} 26. Be4
{[%clk 0:01:03.7]} 26... Nc5 {[%clk 0:01:10.3]} 27. Rxb2 {[%clk 0:01:01.8]}
27... Rxb2 {[%clk 0:01:10]} 28. Bb1 {[%clk 0:00:48.2]} 28... Ke6 {[%clk
0:01:01.2]} 29. g3 {[%clk 0:00:47.3]} 29... Nd7 {[%clk 0:00:55.3]} 30. Kg2
{[%clk 0:00:41.4]} 30... Ne5 {[%clk 0:00:54.3]} 31. h3 {[%clk 0:00:26.4]} 31...
Nc4 {[%clk 0:00:50.1]} 32. Re1 {[%clk 0:00:21]} 32... Kf6 {[%clk 0:00:38.9]} 33.
g4 {[%clk 0:00:20.6]} 33... Nxe3+ {[%clk 0:00:37.3]} 34. Rxe3 {[%clk 0:00:19.4]}
34... Rxb1 {[%clk 0:00:37.6]} 35. Rf3+ {[%clk 0:00:19.4]} 35... Kg6 {[%clk
0:00:37.3]} 36. h4 {[%clk 0:00:19.4]} 36... Rb4 {[%clk 0:00:30.6]} 37. Kg3
{[%clk 0:00:18]} 37... f6 {[%clk 0:00:26.5]} 38. Rc3 {[%clk 0:00:17]} 38... h5
{[%clk 0:00:23.7]} 39. f3 {[%clk 0:00:17.3]} 39... Kh6 {[%clk 0:00:22.4]} 40.
Rc6 {[%clk 0:00:15.9]} 40... hxg4 {[%clk 0:00:20.2]} 41. fxg4 {[%clk 0:00:16.1]}
41... Rb3+ {[%clk 0:00:18.8]} 42. Kf4 {[%clk 0:00:16.3]} 42... Rh3 {[%clk
0:00:15.2]} 43. g5+ {[%clk 0:00:14.4]} 43... Kg6 {[%clk 0:00:14.7]} 44. gxf6
{[%clk 0:00:14.3]} 44... gxf6 {[%clk 0:00:15.3]} 45. Kg4 {[%clk 0:00:14]} 45...
Rb3 {[%clk 0:00:14.7]} 46. h5+ {[%clk 0:00:13.9]} 46... Kg7 {[%clk 0:00:14.8]}
47. h6+ {[%clk 0:00:14.1]} 47... Kxh6 {[%clk 0:00:14.3]} 48. Rxf6+ {[%clk
0:00:13.6]} 48... Kg7 {[%clk 0:00:15.2]} 49. Rf4 {[%clk 0:00:13.9]} 49... Rb7
{[%clk 0:00:13.4]} 50. Kh4 {[%clk 0:00:13.7]} 50... Rf7 {[%clk 0:00:13.4]} 51.
Kg4 {[%clk 0:00:13.7]} 51... Rxf4+ {[%clk 0:00:13.4]} 52. Kxf4 {[%clk
0:00:14.1]} 1/2-1/2

[Event "Early-Titled-Tuesday-Blitz-September-05-2023"]
[Site "Chess.com"]
[Date "2023.09.05"]
[Round "11"]
[White "assezde36"]
[Black "BlueWizzard"]
[Result "1-0"]
[WhiteElo "2812"]
[BlackElo "2908"]
[TimeControl "180+1"]
[EndTime "10:05:54 PDT"]
[Termination "assezde36 won on time"]

1. d4 {[%clk 0:02:57.4]} 1... b6 {[%clk 0:03:00.4]} 2. Nf3 {[%clk 0:02:53.3]}
2... Bb7 {[%clk 0:03:01]} 3. g3 {[%clk 0:02:54.1]} 3... g6 {[%clk 0:03:00.8]} 4.
Bg2 {[%clk 0:02:54.2]} 4... Bg7 {[%clk 0:03:01.2]} 5. O-O {[%clk 0:02:54.8]}
5... e6 {[%clk 0:03:01.3]} 6. c4 {[%clk 0:02:51.7]} 6... Ne7 {[%clk 0:03:00.9]}
7. Nc3 {[%clk 0:02:51.6]} 7... d6 {[%clk 0:02:58]} 8. e4 {[%clk 0:02:48.6]} 8...
Nd7 {[%clk 0:02:58.3]} 9. Bg5 {[%clk 0:02:40.2]} 9... h6 {[%clk 0:02:58.5]} 10.
Be3 {[%clk 0:02:40.4]} 10... O-O {[%clk 0:02:57]} 11. Qd2 {[%clk 0:02:40.1]}
11... Kh7 {[%clk 0:02:57.6]} 12. Rad1 {[%clk 0:02:39.6]} 12... f5 {[%clk
0:02:57.6]} 13. d5 {[%clk 0:02:22.5]} 13... Nc5 {[%clk 0:02:43.5]} 14. Nd4
{[%clk 0:02:20.4]} 14... Qc8 {[%clk 0:02:29.1]} 15. b4 {[%clk 0:02:12.8]} 15...
e5 {[%clk 0:02:21.8]} 16. Nc6 {[%clk 0:01:48.1]} 16... Bxc6 {[%clk 0:02:14.7]}
17. dxc6 {[%clk 0:01:30]} 17... f4 {[%clk 0:02:07.8]} 18. bxc5 {[%clk
0:01:07.7]} 18... fxe3 {[%clk 0:01:55.5]} 19. fxe3 {[%clk 0:01:08.6]} 19... bxc5
{[%clk 0:01:54.1]} 20. Rxf8 {[%clk 0:01:08.1]} 20... Qxf8 {[%clk 0:01:47.6]} 21.
Nd5 {[%clk 0:01:05.8]} 21... Nxd5 {[%clk 0:01:43.3]} 22. Qxd5 {[%clk 0:01:02.9]}
22... Qg8 {[%clk 0:01:39.5]} 23. Rb1 {[%clk 0:01:01]} 23... Qd8 {[%clk
0:01:09.9]} 24. h4 {[%clk 0:00:51.8]} 24... g5 {[%clk 0:01:03.7]} 25. h5 {[%clk
0:00:41.8]} 25... g4 {[%clk 0:00:56.9]} 26. Rb7 {[%clk 0:00:41]} 26... Qe7
{[%clk 0:00:45.5]} 27. Qd1 {[%clk 0:00:32.7]} 27... Qg5 {[%clk 0:00:36.1]} 28.
Rxc7 {[%clk 0:00:32.7]} 28... Qxe3+ {[%clk 0:00:36.2]} 29. Kh2 {[%clk
0:00:33.3]} 29... Qg5 {[%clk 0:00:36.8]} 30. Qxd6 {[%clk 0:00:32.1]} 30... Qxh5+
{[%clk 0:00:35.5]} 31. Kg1 {[%clk 0:00:32.6]} 31... Qg5 {[%clk 0:00:29]} 32. Qe7
{[%clk 0:00:21.7]} 32... Qxe7 {[%clk 0:00:19]} 33. Rxe7 {[%clk 0:00:22.6]} 33...
Rc8 {[%clk 0:00:19.5]} 34. c7 {[%clk 0:00:19.4]} 34... Kg6 {[%clk 0:00:20]} 35.
Bf1 {[%clk 0:00:13.4]} 35... Kf6 {[%clk 0:00:19.5]} 36. Rd7 {[%clk 0:00:13.5]}
36... h5 {[%clk 0:00:17.8]} 37. Be2 {[%clk 0:00:12.2]} 37... Bh6 {[%clk
0:00:15.9]} 38. Bd1 {[%clk 0:00:11]} 38... Ke6 {[%clk 0:00:15.2]} 39. Ba4 {[%clk
0:00:10.6]} 39... Be3+ {[%clk 0:00:12.5]} 40. Kf1 {[%clk 0:00:08.8]} 40... Rf8+
{[%clk 0:00:10.3]} 41. Ke2 {[%clk 0:00:08.9]} 41... h4 {[%clk 0:00:08.2]} 42.
Rd8 {[%clk 0:00:05.8]} 1-0

[Event "Early-Titled-Tuesday-Blitz-September-05-2023"]
[Site "Chess.com"]
[Date "2023.09.05"]
[Round "11"]
[White "Darius321"]
[Black "Actuary44"]
[Result "1/2-1/2"]
[WhiteElo "2342"]
[BlackElo "2512"]
[TimeControl "180+1"]
[EndTime "10:05:57 PDT"]
[Termination "Game drawn - insufficient material"]

1. e4 {[%clk 0:03:00.9]} 1... c5 {[%clk 0:02:59.4]} 2. Nf3 {[%clk 0:03:00.3]}
2... d6 {[%clk 0:02:59.9]} 3. Bb5+ {[%clk 0:03:00.3]} 3... Nc6 {[%clk
0:02:59.8]} 4. O-O {[%clk 0:02:59.5]} 4... g6 {[%clk 0:02:59.7]} 5. c3 {[%clk
0:02:59.2]} 5... Bg7 {[%clk 0:02:59.7]} 6. d4 {[%clk 0:02:54.4]} 6... cxd4
{[%clk 0:03:00]} 7. cxd4 {[%clk 0:02:54.6]} 7... Bd7 {[%clk 0:03:00.7]} 8. h3
{[%clk 0:02:49.3]} 8... Nf6 {[%clk 0:03:01]} 9. Nc3 {[%clk 0:02:48.8]} 9... O-O
{[%clk 0:03:01]} 10. Re1 {[%clk 0:02:48.3]} 10... h6 {[%clk 0:02:58.6]} 11. Be3
{[%clk 0:02:39.2]} 11... a6 {[%clk 0:02:55.8]} 12. Ba4 {[%clk 0:02:35.1]} 12...
Qa5 {[%clk 0:02:55.1]} 13. Bb3 {[%clk 0:02:16.9]} 13... Rac8 {[%clk 0:02:49.1]}
14. Qd2 {[%clk 0:02:12.6]} 14... Qh5 {[%clk 0:02:46.5]} 15. Bd1 {[%clk
0:02:06.8]} 15... Bxh3 {[%clk 0:02:34]} 16. gxh3 {[%clk 0:01:50]} 16... Qxh3
{[%clk 0:02:34.9]} 17. Nh2 {[%clk 0:01:48.7]} 17... b5 {[%clk 0:02:27.8]} 18.
Bf3 {[%clk 0:01:45.5]} 18... e5 {[%clk 0:02:11.7]} 19. Bg2 {[%clk 0:01:06.5]}
19... Qh5 {[%clk 0:02:10.2]} 20. d5 {[%clk 0:01:01]} 20... Nd4 {[%clk
0:02:09.3]} 21. Bxd4 {[%clk 0:00:59]} 21... exd4 {[%clk 0:02:10.2]} 22. Ne2
{[%clk 0:00:58.5]} 22... d3 {[%clk 0:02:02.7]} 23. Ng3 {[%clk 0:00:50.9]} 23...
Qe5 {[%clk 0:01:56.4]} 24. Nf3 {[%clk 0:00:46.2]} 24... Qe7 {[%clk 0:01:52.7]}
25. Qxd3 {[%clk 0:00:46.5]} 25... Ng4 {[%clk 0:01:51.7]} 26. Rac1 {[%clk
0:00:43.7]} 26... Bxb2 {[%clk 0:01:48.1]} 27. Rxc8 {[%clk 0:00:41.5]} 27... Rxc8
{[%clk 0:01:49]} 28. Qe2 {[%clk 0:00:35.1]} 28... Bg7 {[%clk 0:01:47.6]} 29. Bh3
{[%clk 0:00:26.5]} 29... h5 {[%clk 0:01:40.4]} 30. Nh2 {[%clk 0:00:26.4]} 30...
Bc3 {[%clk 0:01:15]} 31. Nxg4 {[%clk 0:00:21.5]} 31... hxg4 {[%clk 0:01:05.7]}
32. Bxg4 {[%clk 0:00:16.9]} 32... f5 {[%clk 0:01:00.5]} 33. exf5 {[%clk
0:00:14.7]} 33... Qxe2 {[%clk 0:00:56.3]} 34. Rxe2 {[%clk 0:00:15.4]} 34... gxf5
{[%clk 0:00:54.7]} 35. Nxf5 {[%clk 0:00:15.6]} 35... Rd8 {[%clk 0:00:53.4]} 36.
Re6 {[%clk 0:00:14.4]} 36... Be5 {[%clk 0:00:52.6]} 37. Kg2 {[%clk 0:00:14.1]}
37... Kf7 {[%clk 0:00:49.8]} 38. Kf3 {[%clk 0:00:13]} 38... Rh8 {[%clk
0:00:43.5]} 39. Ke4 {[%clk 0:00:12.2]} 39... Rh2 {[%clk 0:00:42.2]} 40. f4
{[%clk 0:00:11.4]} 40... Bf6 {[%clk 0:00:36.9]} 41. Nxd6+ {[%clk 0:00:11]} 41...
Kg6 {[%clk 0:00:36.8]} 42. Bf5+ {[%clk 0:00:10.5]} 42... Kg7 {[%clk 0:00:37.4]}
43. Bg4 {[%clk 0:00:09.4]} 43... Rxa2 {[%clk 0:00:35.7]} 44. Nf5+ {[%clk
0:00:09]} 44... Kg6 {[%clk 0:00:32.4]} 45. d6 {[%clk 0:00:08.9]} 45... Ra4+
{[%clk 0:00:29.1]} 46. Kd5 {[%clk 0:00:09]} 46... Rxf4 {[%clk 0:00:26.4]} 47. d7
{[%clk 0:00:08.1]} 47... Rxg4 {[%clk 0:00:25.8]} 48. Rxf6+ {[%clk 0:00:08.1]}
48... Kxf6 {[%clk 0:00:26.7]} 49. d8=Q+ {[%clk 0:00:08.2]} 49... Kxf5 {[%clk
0:00:27.6]} 50. Qd7+ {[%clk 0:00:08.1]} 50... Kf4 {[%clk 0:00:28.1]} 51. Qd6+
{[%clk 0:00:07.4]} 51... Ke3 {[%clk 0:00:24.8]} 52. Qxa6 {[%clk 0:00:07.9]}
52... Rg5+ {[%clk 0:00:24]} 53. Kc6 {[%clk 0:00:04.1]} 53... Rg6+ {[%clk
0:00:23.9]} 54. Kxb5 {[%clk 0:00:04.5]} 54... Rxa6 {[%clk 0:00:24.4]} 55. Kxa6
{[%clk 0:00:05.2]} 1/2-1/2

[Event "Early-Titled-Tuesday-Blitz-September-05-2023"]
[Site "Chess.com"]
[Date "2023.09.05"]
[Round "11"]
[White "Der_Balak_3Halak"]
[Black "dosto07"]
[Result "1-0"]
[WhiteElo "2430"]
[BlackElo "2495"]
[TimeControl "180+1"]
[EndTime "10:05:58 PDT"]
[Termination "Der_Balak_3Halak won by resignation"]

1. e4 {[%clk 0:03:00.9]} 1... e5 {[%clk 0:02:59.4]} 2. Nf3 {[%clk 0:03:00]} 2...
Nc6 {[%clk 0:02:59.4]} 3. Bb5 {[%clk 0:03:00.1]} 3... a6 {[%clk 0:02:59.5]} 4.
Bxc6 {[%clk 0:02:59.4]} 4... dxc6 {[%clk 0:02:58.9]} 5. O-O {[%clk 0:02:59.5]}
5... Bg4 {[%clk 0:02:58]} 6. h3 {[%clk 0:03:00]} 6... Bh5 {[%clk 0:02:56.9]} 7.
d3 {[%clk 0:02:56.4]} 7... f6 {[%clk 0:02:55.5]} 8. c3 {[%clk 0:02:48.2]} 8...
c5 {[%clk 0:02:55.2]} 9. Nbd2 {[%clk 0:02:47.4]} 9... Ne7 {[%clk 0:02:52.4]} 10.
Qb3 {[%clk 0:02:37.2]} 10... Rb8 {[%clk 0:02:32.1]} 11. Qc2 {[%clk 0:02:30.1]}
11... Nc6 {[%clk 0:02:31.7]} 12. a3 {[%clk 0:02:22.1]} 12... a5 {[%clk 0:02:25]}
13. b3 {[%clk 0:02:11.3]} 13... Be7 {[%clk 0:02:24.1]} 14. Bb2 {[%clk
0:02:09.6]} 14... O-O {[%clk 0:02:23.9]} 15. Rad1 {[%clk 0:02:08.1]} 15... Qd7
{[%clk 0:02:22.6]} 16. Rfe1 {[%clk 0:02:03.5]} 16... Rbd8 {[%clk 0:02:21.5]} 17.
Re3 {[%clk 0:02:03.7]} 17... Kh8 {[%clk 0:01:52.6]} 18. Nf1 {[%clk 0:01:52.9]}
18... Qe6 {[%clk 0:01:27.9]} 19. Ng3 {[%clk 0:01:50.2]} 19... Bf7 {[%clk
0:01:27.7]} 20. Nd2 {[%clk 0:01:34.2]} 20... g6 {[%clk 0:01:23.7]} 21. a4 {[%clk
0:01:18.1]} 21... Qd7 {[%clk 0:01:21.4]} 22. Nf3 {[%clk 0:01:14.7]} 22... Qe6
{[%clk 0:01:12.6]} 23. Nd2 {[%clk 0:01:13.8]} 23... Qd7 {[%clk 0:01:10.5]} 24.
Nc4 {[%clk 0:01:07.9]} 24... Rfe8 {[%clk 0:00:56.1]} 25. Ree1 {[%clk 0:01:06.1]}
25... Bf8 {[%clk 0:00:55.8]} 26. Ne2 {[%clk 0:01:01.1]} 26... Bg7 {[%clk
0:00:42.5]} 27. d4 {[%clk 0:00:59.6]} 27... exd4 {[%clk 0:00:40.4]} 28. cxd4
{[%clk 0:00:59.3]} 28... cxd4 {[%clk 0:00:38.7]} 29. Nxd4 {[%clk 0:00:59.1]}
29... Nxd4 {[%clk 0:00:38.4]} 30. Bxd4 {[%clk 0:00:57.5]} 30... Qe6 {[%clk
0:00:35.3]} 31. Nxa5 {[%clk 0:00:53.4]} 31... b6 {[%clk 0:00:28.1]} 32. Nc4
{[%clk 0:00:51.9]} 32... Rd7 {[%clk 0:00:21.4]} 33. Bb2 {[%clk 0:00:45.9]} 33...
Red8 {[%clk 0:00:21]} 34. f3 {[%clk 0:00:29.2]} 34... Kg8 {[%clk 0:00:18.9]} 35.
Kh1 {[%clk 0:00:27]} 35... Qe7 {[%clk 0:00:18.3]} 36. Ne3 {[%clk 0:00:23.6]}
36... Rxd1 {[%clk 0:00:15.7]} 37. Rxd1 {[%clk 0:00:24.5]} 37... Rxd1+ {[%clk
0:00:15.4]} 38. Qxd1 {[%clk 0:00:25.4]} 38... Qc5 {[%clk 0:00:13.9]} 39. Nd5
{[%clk 0:00:24]} 39... Bxd5 {[%clk 0:00:09.2]} 40. Qxd5+ {[%clk 0:00:24.9]}
40... Qxd5 {[%clk 0:00:08.8]} 41. exd5 {[%clk 0:00:25.8]} 41... Kf8 {[%clk
0:00:09.2]} 42. b4 {[%clk 0:00:25.9]} 42... Ke7 {[%clk 0:00:08.2]} 43. a5 {[%clk
0:00:26.2]} 43... bxa5 {[%clk 0:00:08.5]} 44. bxa5 {[%clk 0:00:27.1]} 44... Kd7
{[%clk 0:00:07.9]} 45. a6 {[%clk 0:00:26.5]} 45... Kc8 {[%clk 0:00:08.3]} 46. g4
{[%clk 0:00:20.5]} 46... Kb8 {[%clk 0:00:08.2]} 47. Bd4 {[%clk 0:00:21]} 47...
Bf8 {[%clk 0:00:07.2]} 48. Bxf6 {[%clk 0:00:20]} 48... Ka7 {[%clk 0:00:07]} 49.
Be5 {[%clk 0:00:20.7]} 49... Bd6 {[%clk 0:00:05.7]} 50. Bxd6 {[%clk 0:00:20.5]}
50... cxd6 {[%clk 0:00:06.2]} 51. f4 {[%clk 0:00:21.2]} 51... Kxa6 {[%clk
0:00:07.1]} 52. f5 {[%clk 0:00:21.6]} 52... gxf5 {[%clk 0:00:07.4]} 53. gxf5
{[%clk 0:00:22.5]} 53... Kb7 {[%clk 0:00:07.9]} 54. f6 {[%clk 0:00:23.2]} 54...
Kc7 {[%clk 0:00:08.1]} 55. f7 {[%clk 0:00:23.8]} 55... Kd7 {[%clk 0:00:09]} 56.
f8=Q {[%clk 0:00:24.4]} 1-0